fUSD/lending_fUSD_20260504
["ID","MTS","AMOUNT","RATE_DAILY","PERIOD"]
[421551659,1777860654000,-432.83722704,0.000388,15]
[421551662,1777860654000,-14716.0,0.000388,2]
[421551660,1777860654000,-5768.7,0.000388,2]
[421551654,1777860654000,-10000.0,0.00038511,2]
[421551701,1777860655000,-1580.0,0.00038989,11]
[421551699,1777860655000,-172.13057003,0.00038942,120]
[421551700,1777860655000,-172.14193383,0.00038942,120]
[421551708,1777860655000,-2303.0,0.00039105,11]
[421551707,1777860655000,-250.54466089,0.00039041,30]
[421551709,1777860655000,-506.49060935,0.00039193,120]
[421551716,1777860655000,-189.68722704,0.00039339,106]
[421551717,1777860655000,-1580.0,0.00039398,11]
[421551711,1777860655000,-344.27250386,0.00039216,120]
[421551713,1777860655000,-506.49060935,0.00039236,120]
[421551715,1777860655000,-2000.0,0.000393,7]
[421551718,1777860655000,-5768.7,0.000394,2]
[421551712,1777860655000,-166.66583333,0.00039216,120]
[421551719,1777860655000,-2112.53,0.000394,2]
[421551710,1777860655000,-187.0,0.00039194,11]
[421551720,1777860655000,-14716.0,0.000394,2]
[421551723,1777860655000,-190.394205,0.0003942,33]
[421551726,1777860655000,-173.30937306,0.000395,120]
[421551732,1777860655000,-2000.0,0.00039748,31]
[421551722,1777860655000,-354.82,0.000394,2]
[421551702,1777860655000,-1580.0,0.00038989,11]
[421551714,1777860655000,-506.49060935,0.000393,120]
[421551705,1777860655000,-1627.93643771,0.00039,120]
[421551693,1777860655000,-891.13316488,0.00038256,2]
[421551706,1777860655000,-163.95348819,0.00039041,30]
[421551727,1777860655000,-5014.30752147,0.00039567,2]
[421551680,1777860655000,-427.903783,0.00022339,14]
[421551683,1777860655000,-774.61697777,0.00025,2]
[421551682,1777860655000,-284.0,0.00023079,2]
[421551679,1777860655000,-427.903783,0.00019761,2]
[421551684,1777860655000,-163.010964,0.00025775,14]
[421551681,1777860655000,-150.0,0.00023079,2]
[421551685,1777860655000,-150.0,0.0002591,2]
[421551692,1777860655000,-2463.0,0.00035837,2]
[421551694,1777860655000,-2463.0,0.00038837,2]
[421551696,1777860655000,-506.49060935,0.00038914,120]
[421551695,1777860655000,-131802.39487791,0.000389,2]
[421551687,1777860655000,-2463.0,0.00026837,2]
[421551686,1777860655000,-221.0,0.0002591,2]
[421551689,1777860655000,-484.0,0.00030137,30]
[421551690,1777860655000,-743.0,0.00030137,30]
[421551691,1777860655000,-2463.0,0.00032837,2]
[421551688,1777860655000,-2463.0,0.00029837,2]
[421551697,1777860655000,-57.21461661,0.00038942,120]
[421551698,1777860655000,-94.29977734,0.00038942,120]
[421551703,1777860655000,-186.4728668,0.00039,120]
[421551704,1777860655000,-230.0,0.00039,2]
[421551730,1777860655000,-626.48,0.000397,30]
[421551762,1777860655000,-161.0,0.0004,30]
[421551731,1777860655000,-1061.9326,0.0003971,2]
[421551746,1777860655000,-500.0,0.00039999,2]
[421551750,1777860655000,-434.72439582,0.0004,7]
[421551758,1777860655000,-318.89159732,0.0004,2]
[421551755,1777860655000,-1582.44036541,0.0004,2]
[421551761,1777860655000,-514.46893361,0.0004,2]
[421551759,1777860655000,-3000.0,0.0004,7]
[421551764,1777860655000,-4451.42312006,0.0004,120]
[421551760,1777860655000,-10835.32109606,0.0004,2]
[421551770,1777860655000,-1000.0,0.0004,2]
[421551763,1777860655000,-287.94742063,0.0004,120]
[421551765,1777860655000,-161.0,0.0004,120]
[421551766,1777860655000,-37000.0,0.0004,10]
[421551769,1777860655000,-1008.05,0.0004,2]
[421551767,1777860655000,-229.0,0.0004,30]
[421551768,1777860655000,-3909.0,0.0004,30]
[421551773,1777860655000,-1000.0,0.0004,2]
[421551772,1777860655000,-1000.0,0.0004,2]
[421551775,1777860655000,-916.97563732,0.0004,120]
[421551776,1777860655000,-2065.52994002,0.0004,120]
[421551774,1777860655000,-495.20990517,0.0004,120]
[421551725,1777860655000,-344.27250386,0.0003949,120]
[421551752,1777860655000,-1009.23992198,0.0004,7]
[421551756,1777860655000,-4165.98674239,0.0004,2]
[421551771,1777860655000,-1000.0,0.0004,2]
[421551747,1777860655000,-500.0,0.00039999,30]
[421551721,1777860655000,-268.33,0.000394,30]
[421551757,1777860655000,-314.22527791,0.0004,2]
[421551728,1777860655000,-506.7715889,0.00039686,60]
[421551724,1777860655000,-151.51439395,0.0003949,120]
[421551729,1777860655000,-626.48,0.000397,60]
[421551734,1777860655000,-154.42,0.00039773,120]
[421551744,1777860655000,-500.0,0.00039994,2]
[421551733,1777860655000,-344.27250386,0.00039764,120]
[421551736,1777860655000,-162.0,0.00039834,11]
[421551735,1777860655000,-252.99,0.00039779,30]
[421551737,1777860655000,-506.49060935,0.0003987,120]
[421551745,1777860655000,-42126.54351726,0.00039995,120]
[421551738,1777860655000,-154.42,0.00039873,120]
[421551754,1777860655000,-395.52676232,0.0004,2]
[421551748,1777860655000,-383.26855287,0.0004,30]
[421551751,1777860655000,-30829.66770808,0.0004,2]
[421551753,1777860655000,-24076.65561087,0.0004,2]
[421551741,1777860655000,-10000.0,0.000399,2]
[421551749,1777860655000,-3112.8,0.0004,30]
[421551743,1777860655000,-154.42,0.00039973,120]
[421551740,1777860655000,-2004.6818,0.000399,2]
[421551742,1777860655000,-5000.0,0.000399,120]
[421551739,1777860655000,-162.3,0.000399,120]
[421551816,1777860656000,-416.89,0.00040279,2]
[421551804,1777860656000,-358.05681318,0.00040264,2]
[421551805,1777860656000,-9886.46136323,0.00040273,2]
[421551803,1777860656000,-150.2864658,0.00040223,2]
[421551810,1777860656000,-300.0,0.00040279,2]
[421551811,1777860656000,-300.0,0.00040279,2]
[421551806,1777860656000,-1362.07779935,0.00040273,2]
[421551809,1777860656000,-300.0,0.00040279,2]
[421551802,1777860656000,-154.42,0.00040173,120]
[421551813,1777860656000,-300.0,0.00040279,2]
[421551815,1777860656000,-300.0,0.00040279,2]
[421551817,1777860656000,-1285.2980894,0.00040287,120]
[421551827,1777860656000,-400.87145741,0.00040411,10]
[421551819,1777860656000,-344.27250386,0.00040312,120]
[421551818,1777860656000,-513.93272056,0.000403,30]
[421551820,1777860656000,-865.74535092,0.00040319,30]
[421551821,1777860656000,-521.0,0.00040353,16]
[421551823,1777860656000,-619.13745938,0.00040356,21]
[421551822,1777860656000,-1000.0,0.00040356,21]
[421551824,1777860656000,-500.0,0.00040356,21]
[421551826,1777860656000,-491.86046456,0.00040411,10]
[421551825,1777860656000,-154.42,0.00040373,120]
[421551833,1777860656000,-300.0,0.00040548,120]
[421551812,1777860656000,-300.0,0.00040279,2]
[421551814,1777860656000,-300.0,0.00040279,2]
[421551807,1777860656000,-154.42,0.00040273,120]
[421551784,1777860656000,-10089.05649366,0.0004,7]
[421551801,1777860656000,-510.0,0.0004013,2]
[421551830,1777860656000,-1994.15,0.00040419,120]
[421551785,1777860656000,-557.7,0.0004,30]
[421551783,1777860656000,-152.0,0.0004,120]
[421551777,1777860656000,-5560.32229407,0.0004,120]
[421551779,1777860656000,-5666.54668367,0.0004,120]
[421551782,1777860656000,-151.0,0.0004,120]
[421551780,1777860656000,-161.95411411,0.0004,120]
[421551778,1777860656000,-158.46456159,0.0004,30]
[421551781,1777860656000,-182.95641617,0.0004,120]
[421551788,1777860656000,-195.49,0.0004,120]
[421551786,1777860656000,-10050.72634126,0.0004,8]
[421551808,1777860656000,-300.0,0.00040279,2]
[421551795,1777860656000,-10000.0,0.0004,30]
[421551798,1777860656000,-166.66583333,0.00040038,120]
[421551791,1777860656000,-195.86,0.0004,120]
[421551790,1777860656000,-718.1,0.0004,120]
[421551787,1777860656000,-278.7,0.0004,120]
[421551789,1777860656000,-385.5,0.0004,120]
[421551799,1777860656000,-18941.0428,0.0004005,30]
[421551793,1777860656000,-2000.0,0.0004,120]
[421551796,1777860656000,-162.48539177,0.0004,3]
[421551797,1777860656000,-344.27250386,0.00040038,120]
[421551794,1777860656000,-388.71,0.0004,120]
[421551800,1777860656000,-154.42,0.00040073,120]
[421551792,1777860656000,-329.48,0.0004,120]
[421551831,1777860656000,-154.42,0.00040473,120]
[421551872,1777860656000,-400.0,0.000409,14]
[421551835,1777860656000,-300.0,0.00040548,120]
[421551861,1777860656000,-400.0,0.000408,14]
[421551862,1777860656000,-188.31120363,0.00040814,120]
[421551857,1777860656000,-2112.53,0.000408,2]
[421551860,1777860656000,-152.0,0.000408,120]
[421551867,1777860656000,-270.5538867,0.00040899,2]
[421551866,1777860656000,-154.42,0.00040873,120]
[421551868,1777860656000,-500.0,0.00040899,30]
[421551876,1777860656000,-32699.10647616,0.0004095,60]
[421551873,1777860656000,-163.0,0.0004091,11]
[421551886,1777860656000,-1748.78370206,0.0004095,60]
[421551870,1777860656000,-6631.01723721,0.000409,120]
[421551859,1777860656000,-354.82,0.000408,2]
[421551871,1777860656000,-5000.0,0.000409,120]
[421551874,1777860656000,-742.4346,0.00040935,30]
[421551875,1777860656000,-500.0,0.00040949,30]
[421551878,1777860656000,-742.97029888,0.0004095,60]
[421551877,1777860656000,-18831.8981652,0.0004095,60]
[421551885,1777860656000,-7742.30533119,0.0004095,60]
[421551883,1777860656000,-459.58986104,0.0004095,60]
[421551881,1777860656000,-495.0,0.00030137,30]
[421551882,1777860656000,-154.6768,0.0004095,60]
[421551880,1777860656000,-298.10547142,0.0004095,60]
[421551879,1777860656000,-381.37633274,0.0004095,60]
[421551884,1777860656000,-2293.72232384,0.0004095,60]
[421551869,1777860656000,-105976.77249105,0.000409,30]
[421551856,1777860656000,-5768.7,0.000408,2]
[421551858,1777860656000,-14716.0,0.000408,2]
[421551854,1777860656000,-918.41291258,0.00040791,120]
[421551828,1777860656000,-597.46,0.00040419,120]
[421551836,1777860656000,-300.0,0.00040548,120]
[421551832,1777860656000,-300.0,0.00040548,120]
[421551837,1777860656000,-300.0,0.00040548,120]
[421551838,1777860656000,-219.432486,0.00040548,120]
[421551829,1777860656000,-346.5,0.00040419,120]
[421551840,1777860656000,-504.98970488,0.00040575,120]
[421551850,1777860656000,-189.63,0.0004075,120]
[421551851,1777860656000,-364.37622717,0.0004077,70]
[421551855,1777860656000,-1006.56008367,0.00040799,30]
[421551842,1777860656000,-100481.63194297,0.000406,30]
[421551843,1777860656000,-151.0,0.000406,120]
[421551839,1777860656000,-154.42,0.00040573,120]
[421551845,1777860656000,-162.0,0.0004066,11]
[421551852,1777860656000,-154.42,0.00040773,120]
[421551847,1777860656000,-153.64677744,0.00040691,64]
[421551864,1777860656000,-344.27250386,0.0004086,120]
[421551853,1777860656000,-293.66,0.00040778,60]
[421551863,1777860656000,-6251.1012714,0.00040837,120]
[421551865,1777860656000,-199.61834353,0.00040873,120]
[421551844,1777860656000,-158.65683792,0.00040644,114]
[421551846,1777860656000,-154.42,0.00040673,120]
[421551849,1777860656000,-200.0,0.00040712,100]
[421551841,1777860656000,-344.27250386,0.00040586,120]
[421551848,1777860656000,-2100.0,0.000407,14]
[421551834,1777860656000,-300.0,0.00040548,120]
[421551887,1777860764000,500.0,0.00010641,2]
[421551888,1777860942000,155.0,0.00024,30]
[421551889,1777860943000,166.66,0.00022699,30]
[421551891,1777860944000,166.66,0.00023655,30]
[421551890,1777860944000,166.66,0.00023177,30]
[421551892,1777860968000,177.0,0.000301,120]
[421551897,1777861164000,186.3891369,0.0003013,120]
[421551901,1777861276000,-222.3061,0.00011794,2]
[421551903,1777861324000,2000.0,0.00030137,120]
[421551904,1777861326000,2958.0,0.0003,120]
[421551907,1777861327000,2958.0,0.0003,120]
[421551906,1777861327000,2958.0,0.0003,120]
[421551905,1777861327000,2958.0,0.0003,120]
[421551911,1777861328000,2958.0,0.0003,120]
[421551910,1777861328000,2958.0,0.0003,120]
[421551909,1777861328000,2958.0,0.0003,120]
[421551908,1777861328000,2958.0,0.0003,120]
[421551913,1777861329000,2959.56,0.0003,120]
[421551912,1777861329000,2958.0,0.0003,120]
[421551914,1777861341000,2150.0,0.00030137,120]
[421551917,1777861346000,95.66866609,9.734e-05,2]
[421551916,1777861346000,74.91133391,9.734e-05,2]
[421551915,1777861346000,170.58,7.301e-05,2]
[421551919,1777861431000,43195.47994751,0.00030137,120]
[421551920,1777861507000,181.620095,0.00026444,120]
[421551928,1777861750000,-170.58,0.00012168,2]
[421551929,1777861750000,-1348.21811071,0.00013385,2]
[421551930,1777861773000,2000.0,0.00024,30]
[421551932,1777861803000,900.0,0.0002353,30]
[421551933,1777861804000,4189.85643529,0.00012,2]
[421551940,1777861833000,-167.33086683,0.00011999,2]
[421551938,1777861833000,-2202.53282863,0.000119,3]
[421551943,1777861833000,-297.30972294,0.00011999,2]
[421551941,1777861833000,-500.0,0.00011999,2]
[421551945,1777861833000,-500.0,0.00011999,2]
[421551944,1777861833000,-500.0,0.00011999,2]
[421551942,1777861833000,-500.0,0.00011999,2]
[421551946,1777861833000,-353.44597919,0.00011999,2]
[421551939,1777861833000,-362.55353174,0.00011999,2]
[421551955,1777861833000,-500.17088465,0.00011999,2]
[421551948,1777861833000,-389.15638803,0.00011999,2]
[421551947,1777861833000,-207.51853287,0.00011999,2]
[421551954,1777861833000,-461.28044106,0.00011999,2]
[421551956,1777861833000,-500.0,0.00011999,2]
[421551952,1777861833000,-221.38039724,0.00011999,2]
[421551957,1777861833000,-407.62466508,0.00011999,2]
[421551950,1777861833000,-500.0,0.00011999,2]
[421551951,1777861833000,-500.0,0.00011999,2]
[421551949,1777861833000,-110.84361197,0.00011999,2]
[421551953,1777861833000,-500.0,0.00011999,2]
[421551963,1777861834000,-500.0,0.00011999,2]
[421551975,1777861834000,-98.27566176,0.00011999,2]
[421551973,1777861834000,-500.0,0.00011999,2]
[421551970,1777861834000,-500.0,0.00011999,2]
[421551972,1777861834000,-29.97939091,0.00011999,2]
[421551969,1777861834000,-500.0,0.00011999,2]
[421551964,1777861834000,-500.0,0.00011999,2]
[421551960,1777861834000,-500.0,0.00011999,2]
[421551959,1777861834000,-500.0,0.00011999,2]
[421551962,1777861834000,-500.0,0.00011999,2]
[421551965,1777861834000,-500.0,0.00011999,2]
[421551967,1777861834000,-500.0,0.00011999,2]
[421551966,1777861834000,-500.0,0.00011999,2]
[421551968,1777861834000,-500.0,0.00011999,2]
[421551958,1777861834000,-92.37533492,0.00011999,2]
[421551985,1777861834000,-500.0,0.00011999,2]
[421551961,1777861834000,-500.0,0.00011999,2]
[421551986,1777861834000,-500.0,0.00011999,2]
[421551971,1777861834000,-299.85196031,0.00011999,2]
[421551976,1777861834000,-500.0,0.00011999,2]
[421551987,1777861834000,-500.0,0.00011999,2]
[421551994,1777861834000,-500.0,0.00011999,2]
[421551997,1777861834000,-500.0,0.00011999,2]
[421551996,1777861834000,-500.0,0.00011999,2]
[421551999,1777861834000,-500.0,0.00011999,2]
[421552001,1777861834000,-127123.03498188,0.00012,2]
[421551998,1777861834000,-500.0,0.00011999,2]
[421552000,1777861834000,-500.0,0.00011999,2]
[421551990,1777861834000,-500.0,0.00011999,2]
[421551982,1777861834000,-500.0,0.00011999,2]
[421551984,1777861834000,-500.0,0.00011999,2]
[421551979,1777861834000,-500.0,0.00011999,2]
[421551974,1777861834000,-401.72433824,0.00011999,2]
[421551981,1777861834000,-500.0,0.00011999,2]
[421551977,1777861834000,-500.0,0.00011999,2]
[421551992,1777861834000,-500.0,0.00011999,2]
[421551978,1777861834000,-500.0,0.00011999,2]
[421551988,1777861834000,-500.0,0.00011999,2]
[421552008,1777861838000,-1322.87671844,0.00012,2]
[421552007,1777861838000,-500.0,0.00011999,2]
[421552009,1777861838000,-1545.97684436,0.00012,2]
[421552010,1777861838000,-2067.49846986,0.00012,2]
[421552014,1777861838000,-380.52932165,0.00012,2]
[421552012,1777861838000,-48993.48432967,0.00012,2]
[421552013,1777861838000,-829.67010334,0.00012,2]
[421552015,1777861838000,-93635.4769221,0.00012,2]
[421552011,1777861838000,-8350.78498937,0.00012,2]
[421552106,1777861840000,-500.0,0.00013699,2]
[421552101,1777861840000,-500.0,0.00013699,2]
[421552103,1777861840000,-500.0,0.00013699,2]
[421552096,1777861840000,-2500.0,0.00013699,2]
[421552099,1777861840000,-500.0,0.00013699,2]
[421552098,1777861840000,-500.0,0.00013699,2]
[421552108,1777861840000,-500.0,0.00013699,2]
[421552107,1777861840000,-500.0,0.00013699,2]
[421552097,1777861840000,-500.0,0.00013699,2]
[421552094,1777861840000,-299.99,0.00013699,2]
[421552090,1777861840000,-150.0,0.00013666,2]
[421552092,1777861840000,-2414.33,0.00013684,2]
[421552088,1777861840000,-988.12,0.00013565,2]
[421552095,1777861840000,-770.89,0.00013699,2]
[421552093,1777861840000,-1200.0,0.00013698,2]
[421552085,1777861840000,-174.31036795,0.00013431,2]
[421552086,1777861840000,-260.51699927,0.00013531,2]
[421552087,1777861840000,-554.8993309,0.00013556,2]
[421552084,1777861840000,-991161.30713857,0.00012,2]
[421552100,1777861840000,-500.0,0.00013699,2]
[421552091,1777861840000,-1852.42,0.00013677,2]
[421552105,1777861840000,-500.0,0.00013699,2]
[421552089,1777861840000,-173.53,0.00013656,2]
[421552102,1777861840000,-500.0,0.00013699,2]
[421552104,1777861840000,-500.0,0.00013699,2]
[421552127,1777861840000,-500.0,0.00013699,2]
[421552124,1777861840000,-500.0,0.00013699,2]
[421552128,1777861840000,-500.0,0.00013699,2]
[421552126,1777861840000,-500.0,0.00013699,2]
[421552122,1777861840000,-500.0,0.00013699,2]
[421552129,1777861840000,-488.60911112,0.00013699,2]
[421552123,1777861840000,-500.0,0.00013699,2]
[421552119,1777861840000,-500.0,0.00013699,2]
[421552117,1777861840000,-500.0,0.00013699,2]
[421552125,1777861840000,-500.0,0.00013699,2]
[421552115,1777861840000,-500.0,0.00013699,2]
[421552116,1777861840000,-500.0,0.00013699,2]
[421552120,1777861840000,-500.0,0.00013699,2]
[421552114,1777861840000,-500.0,0.00013699,2]
[421552110,1777861840000,-500.0,0.00013699,2]
[421552113,1777861840000,-500.0,0.00013699,2]
[421552111,1777861840000,-500.0,0.00013699,2]
[421552121,1777861840000,-500.0,0.00013699,2]
[421552112,1777861840000,-500.0,0.00013699,2]
[421552118,1777861840000,-500.0,0.00013699,2]
[421552109,1777861840000,-500.0,0.00013699,2]
[421552169,1777861841000,-1375.3991811,0.00014767,2]
[421552165,1777861841000,-988.12,0.00014582,2]
[421552168,1777861841000,-163.72,0.00014705,2]
[421552166,1777861841000,-170.58,0.00014602,2]
[421552171,1777861841000,-6790.8713,0.00014768,2]
[421552164,1777861841000,-2880.51723706,0.00014528,2]
[421552162,1777861841000,-554.89933089,0.00014415,2]
[421552161,1777861841000,-513.27428419,0.00014391,2]
[421552170,1777861841000,-5114.0736,0.00014768,2]
[421552163,1777861841000,-250.39331615,0.00014518,2]
[421552167,1777861841000,-167.48,0.00014685,2]
[421552178,1777861841000,-151.0,0.00014859,2]
[421552173,1777861841000,-500.0,0.00014859,2]
[421552184,1777861841000,-151.0,0.00014859,2]
[421552176,1777861841000,-151.0,0.00014859,2]
[421552172,1777861841000,-255.0,0.00014821,2]
[421552175,1777861841000,-151.0,0.00014859,2]
[421552174,1777861841000,-151.0,0.00014859,2]
[421552179,1777861841000,-151.0,0.00014859,2]
[421552177,1777861841000,-151.0,0.00014859,2]
[421552180,1777861841000,-151.0,0.00014859,2]
[421552160,1777861841000,-407.051,0.0001439,2]
[421552185,1777861841000,-151.0,0.00014859,2]
[421552181,1777861841000,-151.0,0.00014859,2]
[421552183,1777861841000,-151.0,0.00014859,2]
[421552153,1777861841000,-506.0086978,0.00014,2]
[421552140,1777861841000,-150.0,0.0001371,2]
[421552157,1777861841000,-208.99,0.00014313,2]
[421552133,1777861841000,-500.0,0.00013699,2]
[421552134,1777861841000,-500.0,0.00013699,2]
[421552131,1777861841000,-500.0,0.00013699,2]
[421552130,1777861841000,-500.0,0.00013699,2]
[421552132,1777861841000,-500.0,0.00013699,2]
[421552135,1777861841000,-500.0,0.00013699,2]
[421552138,1777861841000,-500.0,0.00013699,2]
[421552137,1777861841000,-500.0,0.00013699,2]
[421552136,1777861841000,-500.0,0.00013699,2]
[421552146,1777861841000,-9999.99,0.00013711,2]
[421552139,1777861841000,-500.0,0.00013699,2]
[421552142,1777861841000,-485.73,0.00013711,2]
[421552143,1777861841000,-9999.99,0.00013711,2]
[421552141,1777861841000,-448.98,0.0001371,2]
[421552144,1777861841000,-150.99,0.00013711,2]
[421552145,1777861841000,-6412.62,0.00013711,2]
[421552148,1777861841000,-500.0,0.00013767,2]
[421552158,1777861841000,-210.83,0.00014344,2]
[421552159,1777861841000,-2589.981,0.0001439,2]
[421552147,1777861841000,-24258.95,0.00013711,2]
[421552149,1777861841000,-988.12,0.00013904,2]
[421552150,1777861841000,-5771.60815233,0.00013922,2]
[421552156,1777861841000,-988.12,0.00014243,2]
[421552155,1777861841000,-18364.56,0.0001423,2]
[421552152,1777861841000,-250.0,0.00014,2]
[421552151,1777861841000,-554.89933089,0.00013986,2]
[421552188,1777861841000,-151.0,0.00014859,2]
[421552182,1777861841000,-151.0,0.00014859,2]
[421552191,1777861841000,-151.0,0.00014859,2]
[421552214,1777861841000,-2000.0,0.0001545,2]
[421552219,1777861841000,-194.76391567,0.000156,4]
[421552216,1777861841000,-157.50993025,0.000156,4]
[421552217,1777861841000,-176.13692296,0.000156,4]
[421552223,1777861841000,-200.0,0.00015722,2]
[421552225,1777861841000,-224.6769892,0.00015775,2]
[421552222,1777861841000,-2740.26095973,0.0001571,2]
[421552224,1777861841000,-150.0,0.00015773,2]
[421552226,1777861841000,-500.0,0.00015784,2]
[421552229,1777861841000,-500.0,0.00015784,2]
[421552231,1777861841000,-500.0,0.00015784,2]
[421552230,1777861841000,-500.0,0.00015784,2]
[421552228,1777861841000,-500.0,0.00015784,2]
[421552232,1777861841000,-500.0,0.00015784,2]
[421552233,1777861841000,-189.24743721,0.00015784,2]
[421552235,1777861841000,-500.0,0.00015784,2]
[421552237,1777861841000,-500.0,0.00015784,2]
[421552238,1777861841000,-556.7,0.00015784,2]
[421552236,1777861841000,-500.0,0.00015784,2]
[421552234,1777861841000,-500.0,0.00015784,2]
[421552239,1777861841000,-150.0,0.00015784,2]
[421552240,1777861841000,-101502.73051406,0.00015784,2]
[421552241,1777861841000,-399.43,0.00015784,2]
[421552242,1777861841000,-294.21564065,0.00015784,2]
[421552189,1777861841000,-151.0,0.00014859,2]
[421552218,1777861841000,-183.19846314,0.000156,4]
[421552220,1777861841000,-2500.0,0.00015684,2]
[421552227,1777861841000,-528.98289022,0.00015784,2]
[421552215,1777861841000,-153.44341062,0.000156,4]
[421552196,1777861841000,-2500.0,0.00014884,2]
[421552192,1777861841000,-151.0,0.00014859,2]
[421552187,1777861841000,-151.0,0.00014859,2]
[421552197,1777861841000,-2500.0,0.00014884,2]
[421552186,1777861841000,-151.0,0.00014859,2]
[421552190,1777861841000,-151.0,0.00014859,2]
[421552193,1777861841000,-154.14848078,0.00014859,2]
[421552195,1777861841000,-2500.0,0.00014884,2]
[421552199,1777861841000,-2500.0,0.00014884,2]
[421552209,1777861841000,-500.0,0.00015133,2]
[421552194,1777861841000,-17572.82,0.00014868,2]
[421552198,1777861841000,-2500.0,0.00014884,2]
[421552210,1777861841000,-150.0,0.0001523,2]
[421552200,1777861841000,-300.0,0.00014884,2]
[421552205,1777861841000,-988.12,0.00014922,2]
[421552202,1777861841000,-300.0,0.00014884,2]
[421552203,1777861841000,-300.0,0.00014884,2]
[421552206,1777861841000,-149870.8997335,0.00015,2]
[421552204,1777861841000,-303.16359947,0.00014884,2]
[421552207,1777861841000,-3126.90868458,0.00015,2]
[421552208,1777861841000,-1680.0,0.00015067,2]
[421552211,1777861841000,-155.447,0.00015346,2]
[421552213,1777861841000,-572.81480697,0.00015407,2]
[421552212,1777861841000,-200.0,0.00015366,2]
[421552201,1777861841000,-300.0,0.00014884,2]
[421552221,1777861841000,-5000.0,0.00015684,2]
[421552260,1777861844000,-1378.11,0.00015784,2]
[421552271,1777861846000,-295.525,0.00015784,2]
[421552303,1777861851000,9500.01,0.000107,2]
[421552304,1777861851000,500.0,0.000107,2]
[421552305,1777861860000,315.54718061,0.0001,2]
[421552307,1777861883000,1639.0,0.00030136,120]
[421552314,1777861978000,181.620095,0.00023059,120]
[421552326,1777862779000,222.4214663,0.00030137,120]
[421552331,1777862884000,173.53,0.0002878,120]
[421552352,1777863031000,-2287.39492181,0.00013699,2]
[421552358,1777863031000,-92.51936488,0.00013734,2]
[421552357,1777863031000,-57.48063512,0.00013734,2]
[421552355,1777863031000,-300.0,0.00013713,2]
[421552354,1777863031000,-127.93786488,0.00013699,2]
[421552351,1777863031000,-805.47043148,0.00013699,2]
[421552361,1777863031000,-2500.0,0.00013735,2]
[421552360,1777863031000,-2500.0,0.00013735,2]
[421552374,1777863031000,-200.0,0.00014028,2]
[421552359,1777863031000,-2500.0,0.00013735,2]
[421552353,1777863031000,-159.06213512,0.00013699,2]
[421552344,1777863031000,-3530.94978562,0.00013699,2]
[421552345,1777863031000,-1272.80387378,0.00013699,2]
[421552347,1777863031000,-3403.37146852,0.00013699,2]
[421552342,1777863031000,-79.87832135,0.00013698,2]
[421552348,1777863031000,-552.0,0.00013699,2]
[421552346,1777863031000,-525.79675041,0.00013699,2]
[421552343,1777863031000,-166.66,0.00013699,2]
[421552340,1777863031000,-300.0,0.00013698,2]
[421552349,1777863031000,-1190.69306236,0.00013699,2]
[421552341,1777863031000,-1120.12167865,0.00013698,2]
[421552377,1777863031000,-150.99,0.00014028,2]
[421552350,1777863031000,-605.6100191,0.00013699,2]
[421552382,1777863031000,-857.0754214,0.00014055,2]